bitfinex-derivatives/quotes_ETHF0:USTF0_20240831
["timestamp","ask_amount","ask_price","bid_price","bid_amount"]
[1725069077204,0.27703,2526.9,2526.7,1.03259097]
[1725069077405,0.27705,2526.8,2526.6,2.19652416]
[1725069077706,4.50876166,2526.8,2526.6,1.16393319]
[1725069077912,0.3789,2526.7,2526.6,1.16393319]
[1725069078209,4.55046878,2526.7,2526.6,1.55438228]
[1725069079913,4.17156878,2526.7,2526.6,1.83144228]
[1725069080106,3.48482,2527.0,2526.6,6.82163325]
[1725069080308,3.48482,2527.0,2526.7,0.66749909]
[1725069080608,1.42349,2527.3,2526.7,0.66749909]
[1725069080609,3.2078,2527.3,2527.1,0.277]
[1725069080911,3.2078,2527.3,2527.2,1.412]
[1725069081506,0.00593319,2527.8,2527.2,5.48198021]
[1725069081703,0.64736319,2527.8,2527.2,2.16759097]
[1725069081901,0.64736319,2527.8,2527.3,0.66710549]
[1725069081902,4.37715487,2527.5,2527.3,0.66710549]
[1725069082206,0.27694,2527.7,2527.3,0.27698]
[1725069082615,4.43699721,2527.6,2527.3,0.27698]
[1725069083209,4.42516992,2527.7,2527.2,2.16759097]
[1725069083411,4.42516992,2527.7,2527.4,0.27697]
[1725069083613,0.64737319,2527.8,2527.4,0.27697]
[1725069083815,4.42516992,2527.7,2527.4,0.27697]
[1725069087729,4.42516992,2527.7,2527.3,0.27698]
[1725069087914,4.70210992,2527.7,2527.3,0.27698]
[1725069091023,4.42516992,2527.7,2527.4,0.27697]
[1725069091229,4.42516992,2527.7,2527.6,0.27695]
[1725069091521,3.57823319,2527.8,2527.5,0.27695]
[1725069091735,3.85516319,2527.8,2527.4,0.27697]
[1725069091920,4.54893047,2527.7,2527.4,0.3621]
[1725069092117,5.26413047,2527.7,2527.4,0.3621]
[1725069092722,4.98719047,2527.7,2527.4,0.63907]
[1725069095428,5.26413047,2527.7,2527.4,0.3621]
[1725069096030,4.98719047,2527.7,2527.4,0.3621]
[1725069096234,0.27696,2527.6,2527.4,0.3621]
[1725069096425,0.27696,2527.6,2527.2,0.7674]
[1725069096426,0.27698,2527.3,2527.2,0.7674]
[1725069096629,4.5909587,2527.5,2527.2,0.7674]
[1725069096934,4.5909587,2527.5,2527.2,1.04439]
[1725069097328,0.3813,2527.5,2527.2,1.04439]
[1725069098124,0.3813,2527.5,2527.3,0.27698]
[1725069098332,0.27695,2527.7,2527.3,0.27698]
[1725069098532,0.65825,2527.7,2527.4,0.3699]
[1725069098837,4.38710857,2527.6,2527.4,0.3699]
[1725069102139,4.38710857,2527.6,2527.2,0.7674]
[1725069102340,0.3531,2527.5,2527.2,1.04439]
[1725069102748,4.57884594,2527.4,2527.2,1.04439]
[1725069115758,4.85581594,2527.4,2527.2,0.7674]
[1725069116362,4.57884594,2527.4,2527.2,0.7674]
[1725069117351,4.57884594,2527.4,2527.2,1.0444]
[1725069122359,4.57884594,2527.4,2527.3,0.27698]
[1725069122565,0.28287319,2527.8,2527.5,0.27696]
[1725069122760,0.63687319,2527.8,2527.6,1.1271]
[1725069123560,0.35993319,2527.8,2527.6,1.1271]
[1725069123768,0.63686319,2527.8,2527.6,1.1271]
[1725069124257,0.35993319,2527.8,2527.6,1.1271]
[1725069126072,0.35993319,2527.8,2527.6,1.40405]
[1725069127568,0.35993319,2527.8,2527.7,0.38974379]
[1725069127968,0.35993319,2527.8,2527.6,1.1271]
[1725069128277,0.35993319,2527.8,2527.6,1.40405]
[1725069128569,0.35993319,2527.8,2527.7,0.38973752]
[1725069129670,0.35993319,2527.8,2527.7,0.66667752]
[1725069129877,0.00593319,2527.8,2527.7,0.38973752]
[1725069130067,0.39343319,2527.8,2527.7,0.38973752]
[1725069130468,0.39343319,2527.8,2527.7,0.66667752]
[1725069130670,0.39343319,2527.8,2527.7,0.27694]
[1725069130872,0.39343319,2527.8,2527.7,0.66650703]
[1725069131070,0.39343319,2527.8,2527.7,0.27694]
[1725069131764,0.39343319,2527.8,2527.7,0.66650125]
[1725069132165,0.39343319,2527.8,2527.7,0.27694]
[1725069132571,0.39343319,2527.8,2527.6,0.7463]
[1725069132773,4.58597072,2527.8,2527.6,0.365]
[1725069132975,4.86290072,2527.8,2527.6,0.365]
[1725069133569,4.58597072,2527.8,2527.6,0.365]
[1725069134568,4.86290072,2527.8,2527.6,0.365]
[1725069135968,4.58597072,2527.8,2527.6,0.365]
[1725069137070,4.86290072,2527.8,2527.6,0.365]
[1725069137873,0.27694,2527.7,2527.6,0.365]
[1725069138071,1.14,2527.7,2527.4,1.03063907]
[1725069138281,0.27697,2527.4,2527.3,0.3878]
[1725069138478,0.27697,2527.4,2527.3,0.77772742]
[1725069139476,0.27697,2527.4,2527.3,0.3878]
[1725069141283,8.50643903,2527.4,2527.1,0.3893]
[1725069141480,8.50643903,2527.4,2527.2,0.3899821]
[1725069141481,4.54963903,2527.4,2527.2,0.3899821]
[1725069141675,4.54963903,2527.4,2527.1,2.14483907]
[1725069141872,4.54963903,2527.4,2527.2,0.38997535]
[1725069142179,4.54963903,2527.4,2527.1,2.14483907]
[1725069142474,4.54963903,2527.4,2527.2,0.38997372]
[1725069142667,4.27265903,2527.4,2527.1,2.14483907]
[1725069142867,0.64837,2527.5,2527.2,0.38997567]
[1725069143076,0.64837,2527.5,2527.1,3.28483907]
[1725069143275,0.64837,2527.5,2527.2,0.39015081]
[1725069143580,0.64837,2527.5,2527.1,3.28483907]
[1725069143765,0.64837,2527.5,2527.2,0.3901607]
[1725069143979,0.64837,2527.5,2527.3,0.3901607]
[1725069144275,0.64837,2527.5,2527.1,3.28483907]
[1725069144480,0.64837,2527.5,2527.2,0.39027233]
[1725069144780,0.64837,2527.5,2527.1,3.28483907]
[1725069144979,0.64837,2527.5,2527.2,0.39032434]
[1725069145178,0.64837,2527.5,2527.1,3.28483907]
[1725069145368,0.64837,2527.5,2527.2,0.39036577]
[1725069145566,0.64837,2527.5,2527.3,0.39036577]
[1725069145770,0.64837,2527.5,2527.1,3.28483907]
[1725069145967,0.64837,2527.5,2527.2,0.39040672]
[1725069146167,0.64837,2527.5,2527.1,3.28483907]
[1725069146380,0.64837,2527.5,2527.2,0.3904185]
[1725069146572,0.64837,2527.5,2527.1,3.28483907]
[1725069146771,0.64837,2527.5,2527.2,0.39042313]
[1725069147077,0.64837,2527.5,2527.1,3.28483907]
[1725069147279,0.64837,2527.5,2527.2,0.39041343]
[1725069147584,0.64837,2527.5,2527.1,3.28483907]
[1725069147775,0.64837,2527.5,2527.2,0.39031471]
[1725069147980,0.64837,2527.5,2527.1,3.28483907]
[1725069148179,0.64837,2527.5,2527.2,0.3902754]
[1725069148375,0.64837,2527.5,2527.1,3.28483907]
[1725069148376,0.64837,2527.5,2527.1,2.14483907]
[1725069148571,4.4127042,2527.4,2527.2,0.39027216]
[1725069148778,4.4127042,2527.4,2527.1,2.14483907]
[1725069148978,4.4127042,2527.4,2527.2,0.39028913]
[1725069149291,4.4127042,2527.4,2527.1,2.14483907]
[1725069149478,4.4127042,2527.4,2527.2,0.39032761]
[1725069149678,4.4127042,2527.4,2527.1,2.14483907]
[1725069149885,4.4127042,2527.4,2527.2,0.39032307]
[1725069150079,4.4127042,2527.4,2527.1,2.14483907]
[1725069150281,4.4127042,2527.4,2527.2,0.39031795]
[1725069150485,4.4127042,2527.4,2527.1,2.42184907]
[1725069150783,4.4127042,2527.4,2527.2,0.39031007]
[1725069150988,4.4127042,2527.4,2527.1,2.42184907]
[1725069151195,4.4127042,2527.4,2527.2,0.39031073]
[1725069151390,4.4127042,2527.4,2527.1,2.42184907]
[1725069151581,4.4127042,2527.4,2527.2,0.39031566]
[1725069151778,4.4127042,2527.4,2527.1,2.42184907]
[1725069151977,4.4127042,2527.4,2527.2,0.39031784]
[1725069152177,4.4127042,2527.4,2527.3,0.39031784]
[1725069152586,4.4127042,2527.4,2527.1,2.42183907]
[1725069152779,4.4127042,2527.4,2527.2,0.3903167]
[1725069152981,4.4127042,2527.4,2527.1,2.42183907]
[1725069153281,4.4127042,2527.4,2527.2,0.39046857]
[1725069153476,4.4127042,2527.4,2527.3,0.39046857]
[1725069153991,4.4127042,2527.4,2527.3,0.39044772]
[1725069154182,4.4127042,2527.4,2527.3,0.39044583]
[1725069154382,4.4127042,2527.4,2527.1,2.42183907]
[1725069154590,4.4127042,2527.4,2527.2,0.39044848]
[1725069154786,4.4127042,2527.4,2527.1,2.42183907]
[1725069154984,4.4127042,2527.4,2527.2,0.39045216]
[1725069155186,4.4127042,2527.4,2527.1,2.42183907]
[1725069155386,4.4127042,2527.4,2527.2,0.3904513]
[1725069155693,4.4127042,2527.4,2527.1,2.42183907]
[1725069155906,4.4127042,2527.4,2527.2,0.39045565]
[1725069156191,4.6896842,2527.4,2527.1,2.14483907]
[1725069156391,4.6896842,2527.4,2527.2,0.39045679]
[1725069156592,4.6896842,2527.4,2527.1,2.14483907]
[1725069156787,4.6896842,2527.4,2527.2,0.39046784]
[1725069156987,4.6896842,2527.4,2527.1,2.14483907]
[1725069157189,4.6896842,2527.4,2527.2,0.3904702]
[1725069157488,4.6896842,2527.4,2527.1,2.14483907]
[1725069157797,4.6896842,2527.4,2527.2,0.39047059]
[1725069157984,4.6896842,2527.4,2527.1,2.14483907]
[1725069158289,4.6896842,2527.4,2527.2,0.39046471]
[1725069158592,4.6896842,2527.4,2527.1,2.14483907]
[1725069158777,4.6896842,2527.4,2527.2,0.39046707]
[1725069158981,4.6896842,2527.4,2527.1,2.14483907]
[1725069159184,4.6896842,2527.4,2527.2,0.3904678]
[1725069159383,4.6896842,2527.4,2527.1,2.14483907]
[1725069159583,4.6896842,2527.4,2527.2,0.39046101]
[1725069159783,4.6896842,2527.4,2527.1,2.14483907]
[1725069159980,4.6896842,2527.4,2527.2,0.39047642]
[1725069160194,4.6896842,2527.4,2527.1,2.14483907]
[1725069160393,4.6896842,2527.4,2527.2,0.39047317]
[1725069160588,4.6896842,2527.4,2527.1,2.14483907]
[1725069160989,4.6896842,2527.4,2527.2,0.39045881]
[1725069161196,4.6896842,2527.4,2527.1,2.14483907]
[1725069161397,4.6896842,2527.4,2527.2,0.39045766]
[1725069161691,4.6896842,2527.4,2527.1,2.14483907]
[1725069161897,4.6896842,2527.4,2527.2,0.39044754]
[1725069162088,4.6896842,2527.4,2527.1,2.14483907]
[1725069162390,4.6896842,2527.4,2527.2,0.39044385]
[1725069162597,4.6896842,2527.4,2527.1,2.14483907]
[1725069162790,4.6896842,2527.4,2527.2,0.39044396]
[1725069162985,4.6896842,2527.4,2527.1,2.14483907]
[1725069163190,0.27698,2527.3,2527.2,0.39045352]
[1725069164294,0.27698,2527.3,2527.2,0.39044869]
[1725069170902,0.277,2527.2,2527.1,2.14483907]
[1725069171094,0.277,2527.2,2527.1,2.53527247]
[1725069172698,0.277,2527.2,2527.1,2.14483907]
[1725069172898,0.27699,2527.3,2527.1,2.14483907]
[1725069174208,0.27699,2527.3,2527.2,0.39041583]
[1725069175704,0.27699,2527.3,2527.2,0.78082709]
[1725069177405,9.05638343,2527.3,2527.2,0.78082709]
[1725069177604,17.26565343,2527.3,2527.2,0.78082709]
[1725069178298,17.53142623,2527.3,2527.2,0.39041583]
[1725069180994,20.73922623,2527.3,2527.2,0.39041583]
[1725069182612,0.27704,2526.8,2526.7,1.1024]
[1725069183013,4.86989969,2526.8,2526.7,1.1024]
[1725069183313,5.22289969,2526.8,2526.7,1.1024]
[1725069183617,0.27705,2526.7,2526.6,0.62188835]
[1725069183915,6.06728,2526.7,2526.6,0.62188835]
[1725069184109,16.58731389,2526.7,2526.6,0.62188835]
[1725069185410,14.75468389,2526.7,2526.6,0.62188835]
[1725069185716,5.93708389,2526.7,2526.6,0.62188835]
[1725069186502,9.89468389,2526.7,2526.6,0.62188835]
[1725069186704,5.93708389,2526.7,2526.6,0.62188835]
[1725069188010,15.89468389,2526.7,2526.6,0.62188835]
[1725069188214,16.63798389,2526.7,2526.6,0.62188835]
[1725069188618,16.63798389,2526.7,2526.6,0.00593319]
[1725069189010,19.84578389,2526.7,2526.6,0.00593319]
[1725069189219,20.53841389,2526.7,2526.6,0.00593319]
[1725069191518,13.10248389,2526.7,2526.6,0.00593319]
[1725069196317,13.79511389,2526.7,2526.6,0.00593319]
[1725069196710,14.17071389,2526.7,2526.6,0.00593319]
[1725069199117,10.96291389,2526.7,2526.6,0.00593319]
[1725069199415,14.17071389,2526.7,2526.6,0.00593319]
[1725069200527,10.96291389,2526.7,2526.6,0.00593319]
[1725069201119,14.17071389,2526.7,2526.6,0.00593319]
[1725069202720,13.79511389,2526.7,2526.6,0.00593319]
[1725069202922,9.14488389,2526.7,2526.6,0.00593319]
[1725069212737,5.93708389,2526.7,2526.6,0.00593319]
[1725069213136,9.14488389,2526.7,2526.6,0.00593319]
[1725069214038,13.10248389,2526.7,2526.6,0.00593319]
[1725069216135,0.27709,2526.3,2526.2,0.7298]
[1725069216340,4.62489,2526.3,2526.2,0.7298]
[1725069216540,8.74144712,2526.3,2526.2,0.7298]
[1725069216738,0.27712,2526.1,2526.0,0.3795]
[1725069217040,5.53367712,2526.1,2526.0,0.3795]
[1725069217837,9.49207712,2526.1,2526.0,0.3795]
[1725069218341,5.53367712,2526.1,2526.0,0.3795]
[1725069221945,8.74147712,2526.1,2526.0,0.3795]
[1725069226446,5.53367712,2526.1,2526.0,0.3795]
[1725069226649,8.74147712,2526.1,2526.0,0.3795]
[1725069232355,0.27713,2526.0,2525.8,0.36213319]
[1725069232554,0.64013,2526.0,2525.8,0.75253319]
[1725069232755,4.42563165,2525.9,2525.8,0.75253319]
[1725069232955,5.56563165,2525.9,2525.8,0.36213319]
[1725069233151,5.84277165,2525.9,2525.8,0.36213319]
[1725069234759,5.56563165,2525.9,2525.8,0.36213319]
[1725069242661,5.84277165,2525.9,2525.8,0.36213319]
[1725069244657,5.56563165,2525.9,2525.8,0.36213319]
[1725069247764,8.77343165,2525.9,2525.8,0.36213319]
[1725069250663,4.42563165,2525.9,2525.8,0.36213319]
[1725069251068,3.2078,2525.9,2525.8,0.36213319]
[1725069251369,3.2078,2525.9,2525.8,4.32133319]
[1725069255065,3.2078,2525.9,2525.8,4.59848319]
[1725069256061,1.14,2526.0,2525.8,4.59848319]
[1725069256260,1.14,2526.0,2525.8,0.63928319]
[1725069256465,4.38939023,2525.9,2525.8,0.63928319]
[1725069256868,4.38939023,2525.9,2525.8,4.59848319]
[1725069258170,4.38939023,2525.9,2525.8,4.99008595]
[1725069258374,4.38939023,2525.9,2525.8,4.59848319]
[1725069259475,4.38939023,2525.9,2525.8,4.99010297]
[1725069260873,4.38939023,2525.9,2525.8,4.71295297]
[1725069261169,4.38939023,2525.9,2525.8,6.02074204]
[1725069261370,4.38939023,2525.9,2525.8,5.74359204]
[1725069261671,4.76459023,2525.9,2525.8,4.71295297]
[1725069261970,4.76459023,2525.9,2525.8,4.71296638]
[1725069262174,4.76459023,2525.9,2525.8,5.74360545]
[1725069263474,4.76459023,2525.9,2525.8,4.71296638]
[1725069263868,4.76459023,2525.9,2525.8,5.74360545]
[1725069265172,4.76459023,2525.9,2525.8,5.35197226]
[1725069265373,4.76459023,2525.9,2525.8,5.7436692]
[1725069265675,4.76459023,2525.9,2525.8,4.71303013]
[1725069267777,4.76459023,2525.9,2525.8,5.7436692]
[1725069268073,4.76459023,2525.9,2525.8,4.71303013]
[1725069268276,4.76459023,2525.9,2525.8,0.75383013]
[1725069268569,4.76459023,2525.9,2525.8,0.36213319]
[1725069268766,4.76459023,2525.9,2525.8,0.75394935]
[1725069271871,4.76459023,2525.9,2525.8,0.75394826]
[1725069275180,4.76459023,2525.9,2525.8,0.36213319]
[1725069275375,4.76459023,2525.9,2525.8,0.754003]
[1725069278772,4.76459023,2525.9,2525.8,0.75410596]
[1725069280074,4.76459023,2525.9,2525.8,1.78474503]
[1725069280680,4.76459023,2525.9,2525.8,0.75410596]
[1725069280877,4.76459023,2525.9,2525.8,1.78474503]
[1725069281085,4.76459023,2525.9,2525.8,0.75410596]
[1725069281282,4.76459023,2525.9,2525.8,1.78474503]
[1725069281873,4.76459023,2525.9,2525.8,0.75410596]
[1725069282069,4.76459023,2525.9,2525.8,0.36213319]
[1725069282280,4.76459023,2525.9,2525.8,1.78478207]
[1725069282682,7.97239023,2525.9,2525.8,0.754143]
[1725069282889,8.24953023,2525.9,2525.8,0.754143]
[1725069283281,7.97239023,2525.9,2525.8,0.754143]
[1725069285685,4.76459023,2525.9,2525.8,0.754143]
[1725069285876,7.97239023,2525.9,2525.8,0.754143]
[1725069287681,4.76459023,2525.9,2525.8,0.754143]
[1725069287883,7.97239023,2525.9,2525.8,0.754143]
[1725069288582,7.97239023,2525.9,2525.8,0.397943]
[1725069288583,8.24953023,2525.9,2525.8,0.397943]
[1725069288996,8.24953023,2525.9,2525.8,0.00593319]
[1725069289384,12.20873023,2525.9,2525.8,0.00593319]
[1725069289592,20.04158023,2525.9,2525.8,0.00593319]
[1725069289787,20.04158023,2525.9,2525.3,1.75613907]
[1725069289788,0.27719,2525.4,2525.3,1.75613907]
[1725069289984,3.48499,2525.4,2525.3,1.11769154]
[1725069290183,7.70334266,2525.4,2525.3,0.7255]
[1725069290393,7.70334266,2525.4,2525.3,0.3631]
[1725069292692,7.70334266,2525.4,2525.2,0.3889]
[1725069292993,1.5112,2525.3,2525.1,1.76013907]
[1725069293192,1.5112,2525.3,2525.1,0.7295]
[1725069293391,1.5112,2525.3,2525.0,1.03063907]
[1725069293392,4.21942402,2525.2,2525.0,1.03063907]
[1725069293591,0.27725,2524.9,2524.8,0.7431]
[1725069293792,1.41725,2524.9,2524.8,0.7431]
[1725069293986,5.91940042,2524.9,2524.8,0.7431]
[1725069294190,5.91940042,2524.9,2524.6,11.2466]
[1725069294191,9.60295042,2524.9,2524.6,0.3546]
[1725069294383,4.3478,2524.7,2524.6,0.3546]
[1725069294703,0.27728,2524.6,2524.5,0.7309]
[1725069294898,0.66178,2524.6,2524.5,0.7309]
[1725069295204,4.97119173,2524.6,2524.5,0.7309]
[1725069295393,4.97119173,2524.6,2524.5,0.3777]
[1725069297100,8.17899173,2524.6,2524.5,0.3777]
[1725069298104,9.04171173,2524.6,2524.5,0.3777]
[1725069299803,8.65721173,2524.6,2524.5,0.3777]
[1725069300699,5.44941173,2524.6,2524.5,0.3777]
[1725069301501,5.44941173,2524.6,2524.5,0.65499]
[1725069301700,5.44941173,2524.6,2524.5,0.3777]
[1725069308807,3.2078,2524.9,2524.5,4.61579]
[1725069308999,4.3478,2524.9,2524.7,0.27726]
[1725069309405,4.3478,2524.9,2524.8,0.7512]
[1725069310613,1.14,2524.9,2524.8,0.7512]
[1725069310813,4.3478,2524.9,2524.8,0.7512]
[1725069312016,1.14,2524.9,2524.8,0.7512]
[1725069312198,4.3478,2524.9,2524.8,0.7512]
[1725069312811,1.14,2524.9,2524.8,0.7512]
[1725069314911,1.5287,2524.9,2524.8,0.7512]
[1725069315499,1.14,2524.9,2524.8,1.02846]
[1725069315700,0.00593319,2525.0,2524.9,0.27725]
[1725069315905,1.14593319,2525.0,2524.9,4.59125]
[1725069317313,3.2078,2525.2,2524.9,4.314]
[1725069317507,3.2078,2525.2,2525.1,0.27723]
[1725069317905,3.2078,2525.2,2525.1,4.23723]
[1725069319408,0.00593319,2525.4,2525.3,0.2772]
[1725069319818,0.00593319,2525.4,2525.3,10.2372]
[1725069320515,3.9006,2526.2,2525.3,10.2372]
[1725069320516,3.48491,2526.2,2525.7,0.27715]
[1725069320821,4.18475037,2526.0,2525.8,0.7365]
[1725069321119,1.14,2526.1,2525.8,1.1197]
[1725069321521,4.18475037,2525.9,2525.8,1.1197]
[1725069321711,4.18475037,2526.0,2525.8,1.1197]
[1725069322011,1.14,2526.1,2525.8,1.1197]
[1725069322720,1.14,2526.1,2525.8,1.39685]
[1725069323223,3.58673319,2526.2,2525.8,1.39685]
[1725069323224,3.58673319,2526.2,2526.0,0.27713]
[1725069323618,4.46324549,2526.1,2525.8,4.3275]
[1725069323813,4.46324549,2526.1,2526.0,0.27713]
[1725069324926,3.58673319,2526.2,2526.0,4.23553]
[1725069325238,0.37893319,2526.2,2526.0,0.27713]
[1725069326020,0.00593319,2526.2,2526.0,0.27713]
[1725069326615,0.37043319,2526.2,2526.0,0.27713]
[1725069327724,1.51043319,2526.2,2526.0,0.27713]
[1725069328721,1.51043319,2526.2,2525.8,4.3275]
[1725069328722,1.51043319,2526.2,2525.9,0.27713]
[1725069328916,1.87623319,2526.2,2525.9,0.27713]
[1725069330417,1.87623319,2526.2,2525.8,4.60464]
[1725069330620,2.23863319,2526.2,2525.8,4.60464]
[1725069330824,2.23863319,2526.2,2525.9,0.27714]
[1725069331528,4.48132261,2526.1,2525.9,0.27714]
[1725069335319,4.48132261,2526.1,2526.0,0.27713]
[1725069335518,0.00593319,2526.2,2526.1,0.27712]
[1725069335718,0.00593319,2526.2,2526.1,4.23552]
[1725069336427,0.3575,2526.5,2526.4,0.27708]
[1725069336725,3.86463,2526.9,2526.2,4.3206]
[1725069336923,0.3755,2526.8,2526.5,0.27706]
[1725069337120,4.96658778,2526.8,2526.5,0.27706]
[1725069339528,4.96658778,2526.8,2526.6,0.27706]
[1725069341726,0.3755,2526.8,2526.7,4.60585]
[1725069341929,0.3755,2526.8,2526.7,0.64825]
[1725069342233,0.3755,2526.8,2526.6,0.27706]
[1725069342832,0.38573319,2526.9,2526.7,0.27705]
[1725069343035,0.75453319,2526.9,2526.7,0.27705]
[1725069351632,0.75453319,2526.9,2526.8,0.3577]
[1725069352441,0.37473319,2526.9,2526.8,0.3577]
[1725069357238,0.37473319,2526.9,2526.8,0.63474]
[1725069357939,0.00593319,2526.9,2526.8,4.59234]
[1725069358239,0.3655,2527.8,2526.9,0.69258]
[1725069358440,4.96643082,2528.1,2527.6,1.14]
[1725069358441,0.3869,2528.0,2527.6,1.14]
[1725069358637,3.2078,2528.3,2527.8,1.14]
[1725069358943,4.83711166,2528.2,2527.8,0.27692]
[1725069359137,4.83711166,2528.2,2527.9,0.27691]
[1725069359138,4.94622166,2528.2,2527.9,0.27691]
[1725069361939,6.36311166,2528.2,2527.7,3.49066319]
[1725069362140,6.36311166,2528.2,2527.8,0.27693]
[1725069362141,0.7564,2528.1,2527.8,0.27693]
[1725069362543,4.20736631,2528.0,2527.8,0.27693]
[1725069368353,4.20736631,2528.0,2527.8,0.65503]
[1725069369649,0.27693,2527.8,2527.7,0.00593319]
[1725069370041,4.60590277,2527.8,2527.7,0.00593319]
[1725069370946,16.39423277,2527.8,2527.7,0.00593319]
[1725069371442,10.39423277,2527.8,2527.7,0.00593319]
[1725069372753,13.60203277,2527.8,2527.7,0.00593319]
[1725069375251,13.87751372,2527.8,2527.7,0.00593319]
[1725069375560,19.87751372,2527.8,2527.7,0.00593319]
[1725069376856,0.27699,2527.3,2526.9,9.89242]
[1725069377051,0.27699,2527.3,2526.9,5.73442]
[1725069377253,4.73145151,2527.2,2526.9,5.73442]
[1725069377460,4.73145151,2527.2,2527.0,0.27702]
[1725069380258,4.73145151,2527.2,2526.9,5.4574]
[1725069380459,5.00845151,2527.2,2526.9,1.1096]
[1725069384371,9.07925151,2527.2,2526.8,0.00593319]
[1725069384558,0.27703,2526.9,2526.8,0.00593319]
[1725069384960,4.97703319,2526.9,2526.8,0.00593319]
[1725069386664,8.18483319,2526.9,2526.8,0.00593319]
[1725069388570,4.97703319,2526.9,2526.8,0.00593319]
[1725069388866,13.28243319,2526.9,2526.8,0.00593319]
[1725069389373,19.97501319,2526.9,2526.8,0.00593319]
[1725069389662,19.97501319,2526.9,2525.9,18.78663907]
[1725069389663,0.69269,2526.5,2525.9,5.298]
[1725069389863,3.2078,2526.3,2525.9,5.57514]
[1725069390070,5.22947984,2526.4,2525.9,5.57514]
[1725069390362,4.18428984,2526.2,2525.9,5.57514]
[1725069390867,4.19022303,2526.3,2525.9,5.57514]
[1725069391068,0.00593319,2526.3,2525.9,4.43514]
[1725069391266,0.00593319,2526.3,2525.9,5.57514]
[1725069391267,4.58534107,2526.2,2525.9,5.57514]
[1725069391867,0.27712,2526.1,2525.9,4.158]
[1725069392568,4.86245107,2526.2,2525.9,4.158]
[1725069392769,4.38076064,2526.0,2525.9,4.158]
[1725069393068,4.13430506,2526.1,2525.9,4.158]
[1725069393268,0.27711,2526.2,2525.9,4.158]
[1725069393661,4.13430506,2526.1,2525.9,4.158]
[1725069395468,4.13430506,2526.1,2525.8,0.00593319]
[1725069396570,4.13430506,2526.1,2525.8,0.28308319]
[1725069396770,4.13430506,2526.1,2525.8,0.00593319]
[1725069397366,4.41142506,2526.1,2525.8,0.00593319]
[1725069398370,4.13430506,2526.1,2525.8,0.00593319]
[1725069398672,4.13430506,2526.1,2525.8,0.28308319]
[1725069398875,4.41142506,2526.1,2525.8,0.00593319]
[1725069399174,0.27712,2526.1,2525.8,0.00593319]
[1725069399471,4.30644166,2526.0,2525.8,0.00593319]
[1725069401475,4.30644166,2526.0,2525.8,0.28308319]
[1725069402870,4.30644166,2526.0,2525.9,5.37634]
[1725069403079,0.00593319,2526.3,2526.2,0.2771]
[1725069403273,0.27703,2526.9,2526.5,0.27706]
[1725069403472,0.27703,2526.9,2526.6,1.8953]
[1725069403874,0.27704,2526.8,2526.6,1.8953]
[1725069405582,4.52135508,2526.9,2526.6,1.8953]
[1725069406275,4.52135508,2526.9,2526.7,0.3908]
[1725069408078,4.24432508,2526.9,2526.7,0.3908]
[1725069409476,3.21373319,2527.0,2526.8,0.27704]
[1725069409477,0.00593319,2527.0,2526.8,0.27704]
[1725069410089,0.00593319,2527.0,2526.7,0.66784]
[1725069410272,4.38451257,2526.9,2526.6,0.7553]
[1725069411180,4.75461257,2526.9,2526.6,0.7553]
[1725069411981,5.03164257,2526.9,2526.6,0.7553]
[1725069412176,0.27704,2526.8,2526.6,0.7553]
[1725069412485,4.57097326,2526.7,2526.4,3.2078]
[1725069412676,4.29391326,2526.7,2526.4,3.2078]
[1725069413179,4.57096326,2526.7,2526.4,3.2078]
[1725069413484,4.57096326,2526.7,2526.3,1.39299]
[1725069414280,0.27708,2526.5,2526.3,0.3874]
[1725069414486,0.27708,2526.5,2526.2,4.158]
[1725069414693,4.91715117,2526.4,2526.2,4.158]
[1725069414881,4.91715117,2526.4,2526.0,11.6281]
[1725069414882,4.64006117,2526.4,2526.0,11.6281]
[1725069415081,0.3821,2526.3,2526.0,11.6281]
[1725069415377,4.31276038,2526.2,2526.0,0.7361]
[1725069416383,4.31276038,2526.2,2526.0,1.01323]
[1725069420188,4.31276038,2526.2,2526.1,0.27712]
[1725069420492,3.86937,2526.6,2526.2,0.2771]
[1725069420689,4.24267,2526.6,2526.2,0.2771]
[1725069420879,4.68140562,2526.5,2526.2,0.2771]
[1725069421482,4.40433562,2526.5,2526.2,0.2771]
[1725069421682,4.40433562,2526.5,2526.3,0.27709]
[1725069422881,4.68140562,2526.5,2526.2,0.2771]
[1725069423080,4.40433562,2526.5,2526.3,0.27709]
[1725069425394,4.24267,2526.6,2526.4,0.3852]
[1725069425590,4.24267,2526.6,2526.4,1.1291]
[1725069428691,0.7578,2526.6,2526.4,1.1291]
[1725069428885,1.03486,2526.6,2526.4,1.1291]
[1725069429093,4.31489237,2526.5,2526.3,0.27709]
[1725069430187,4.31489237,2526.5,2526.1,1.14]
[1725069430188,4.31489237,2526.5,2526.4,1.00928]
[1725069430593,0.3751,2526.9,2526.8,0.27704]
[1725069430895,0.3751,2526.9,2526.4,6.0302]
[1725069430896,0.3902,2526.9,2526.4,6.0302]
[1725069431086,0.3902,2526.9,2526.7,0.27704]
[1725069434491,0.3902,2526.9,2526.6,0.27706]
[1725069434691,4.29762059,2526.8,2526.4,6.0302]
[1725069434900,0.7405,2526.7,2526.5,0.27707]
[1725069435399,0.3551,2526.7,2526.6,0.27706]
[1725069438892,0.3551,2526.7,2526.5,0.27707]
[1725069439895,0.3551,2526.7,2526.6,0.27706]
[1725069440599,4.29762059,2526.8,2526.6,0.27706]
[1725069440803,4.29762059,2526.8,2526.4,1.8722]
[1725069440804,4.57466059,2526.8,2526.5,0.27706]
[1725069443805,4.57466059,2526.8,2526.6,0.27706]
[1725069445700,4.29762059,2526.8,2526.6,0.27706]
[1725069447206,4.57466059,2526.8,2526.5,0.27706]
[1725069447399,4.57466059,2526.8,2526.4,2.90283907]
[1725069447400,5.43762059,2526.8,2526.4,1.03063907]
[1725069447609,0.27707,2526.5,2526.2,5.46573907]
[1725069447803,0.7722,2526.4,2526.2,1.30773907]
[1725069447998,5.02668993,2526.4,2526.2,1.30773907]
[1725069448812,5.02668993,2526.4,2526.3,0.66912583]
[1725069449106,5.02668993,2526.4,2526.3,1.6997649]
[1725069449511,5.02668993,2526.4,2526.3,0.66912583]
[1725069450010,5.02668993,2526.4,2526.3,0.27709]
[1725069450203,5.02668993,2526.4,2526.3,1.69975215]
[1725069451409,5.02668993,2526.4,2526.3,0.66911308]
[1725069451907,5.02668993,2526.4,2526.3,0.39202308]
[1725069452212,5.02668993,2526.4,2526.3,0.66911308]